Cogmind - Beta 13 @@@ ROGUE MODE // 2024.04.22 @ 10:12:49 Player: ThatBishHoly Result: Destroyed by Y-45 Defender with Heavy Assault Rifle Performance ------------- Evolutions (1) 500 Regions Visited (2) 400 Robots Destroyed (23) 115 Value Destroyed (627) 627 Prototype IDs (1) 20 Alien Tech Used (0) 0 Bonus (0) 0 TOTAL SCORE: 1662 Bonus ------- None Cogmind --------- Core Integrity 0/400 Matter 176/300 Energy 261/430 System Corruption 0% Temperature Critical (516) Movement Walking (130) Location -9/Materials Parts ------- > --- POWER (2) -------- Improved Ion Engine Improved Ion Engine > --- PROPULSION (3) --- Titanium Leg Titanium Leg Titanium Leg > --- UTILITY (2) ------ Advanced Targeting Computer Advanced Targeting Computer > --- WEAPON (2) ------- Field Laser Field Laser > --- INVENTORY (5) ---- Advanced Targeting Computer Advanced Targeting Computer Field Laser Field Laser Peak State ------------ > --- POWER ------------ Improved Ion Engine Improved Ion Engine > --- PROPULSION ------- Titanium Leg Titanium Leg Titanium Leg > --- UTILITY ---------- Advanced Targeting Computer Advanced Targeting Computer > --- WEAPON ----------- Field Laser Field Laser > --- INVENTORY -------- Advanced Targeting Computer Advanced Targeting Computer Field Laser Field Laser [Rating: 26] Favorites ----------- Power Light Ion Engine Engine Light Ion Engine Propulsion Titanium Leg Leg Titanium Leg Wheel Wheel Flight Unit Flight Unit Utility Advanced Targeting Computer Device Sensor Array Processor Advanced Targeting Computer Protection Light Armor Plating Weapon Field Laser Energy Gun Field Laser Ballistic Gun Light Assault Rifle Build | -11 -10 -9 ------- Run | Yrd Mat Mat Slots Evolved 2 | . . 2 Power 1 | . . 1 Propulsion 1 | . . 1 Utility . | . . . Weapon . | . . . Parts Attached 36 | 5 5 26 Power 7 | 1 . 6 Engine 7 | 1 . 6 Core . | . . . Reactor . | . . . Propulsion 12 | 2 . 10 Treads . | . . . Leg 5 | . . 5 Wheel 2 | 2 . . Hover . | . . . Flight 5 | . . 5 Utility 8 | . 3 5 Device 2 | . 2 . Storage . | . . . Processor 3 | . . 3 Hackware . | . . . Protection 3 | . 1 2 Artifact . | . . . Weapon 9 | 2 2 5 Energy Gun 4 | . . 4 Energy Cannon . | . . . Ballistic Gun 5 | 2 2 1 Ballistic Cannon . | . . . Launcher . | . . . Special Weapon . | . . . Impact Weapon . | . . . Slashing Weapon . | . . . Piercing Weapon . | . . . Special Melee Weapon . | . . . Unidentified Prototypes 1 | . . 1 Parts Lost 10 | . . 10 Power 4 | . . 4 Propulsion 3 | . . 3 Utility 2 | . . 2 Weapon 1 | . . 1 Highest Loss Streak 7 | . . 7 To Critical Strikes . | . . . Average Slot Usage (%) 87 | . 94 86 Engine 15 | . 14 16 Leg 16 | . . 20 Wheel 8 | . 28 4 Flight 2 | . . 3 Device 2 | . 10 1 Processor 12 | . . 15 Protection 4 | . 12 3 Energy Gun 11 | . . 13 Ballistic Gun 11 | . 28 7 Naked Turns . | . . . Heaviest Build 20 | 6 11 20 Greatest Support 51 | 20 20 51 Greatest Overweight (x) 4 | . . 4 Average Overweight (x) . | . . . Largest Inventory Capacity 5 | 5 5 5 Average Capacity 5 | 5 5 5 Most Carried 5 | 5 4 5 Average Carried 3 | . 1 4 Final Capacity 5 | 5 5 5 Final Carried 4 | . 3 4 Class Distribution -------------------- 92% | Mutant 7% | Scavenger-Mutant Dominant Class ---------------- Mutant | -10/Materials Mutant | -9/Materials Resources | -11 -10 -9 ----------- Run | Yrd Mat Mat Matter Collected 565 | 203 54 308 Remotely . | . . . Salvage Created 755 | . 54 701 Parts 55 | . 3 52 Haulers Intercepted . | . . . Recyclers Shooed . | . . . Parts Field Recycled . | . . . Retrieved Matter . | . . . Parts Self-Destructed . | . . . Prevented . | . . . Kills | -11 -10 -9 ------- Run | Yrd Mat Mat Combat Hostiles Destroyed 20 | . 3 17 Guns 20 | . 3 17 Classes Destroyed 5 | . 1 4 Builder 1 | . . 1 Watcher 2 | . . 2 Swarmer 6 | . 3 3 Grunt 10 | . . 10 Sentry 4 | . . 4 Best Kill Streak 4 | . 3 4 Combat Bots Only 4 | . 3 4 Max Kills in Single Turn 2 | . 1 2 Gunslinging . | . . . Exploded . | . . . Melee . | . . . Uniques/NPCs Destroyed . | . . . Combat | -11 -10 -9 -------- Run | Yrd Mat Mat Hostile Shots Fired 170 | . 9 161 Missed 51 | . 2 49 Damage Taken 1440 | . 59 1381 Core 405 | . . 405 Absorbed by Shields . | . . . Regen/Repaired (Parts) 113 | . . 113 Core Remaining (%) 100 | 100 100 . Volleys Fired 69 | . 5 64 Largest 2 | . 2 2 Hottest 126 | . 40 126 Shots Fired 131 | . 10 121 Gun 131 | . 10 121 Cannon . | . . . Launcher . | . . . Special . | . . . Kinetic 70 | . 10 60 Thermal 61 | . . 61 Explosive . | . . . Electromagnetic . | . . . Robot Hit Streak 18 | . 5 18 Robot Miss Streak 6 | . 2 6 Penetration Max . | . . . Secondary Targets 5 | . . 5 Max Gunslinging Chain 1 | . . 1 Shots Hit Robots 88 | . 6 82 Core Hits 35 | . 4 31 Critical Kills . | . . . Critical Parts Destroyed 2 | . . 2 Critical Strikes 4 | . . 4 Burn 2 | . . 2 Destroy 2 | . . 2 Melee Attacks . | . . . Impact . | . . . Slashing . | . . . Piercing . | . . . Sneak Attacks . | . . . Combat Hostiles . | . . . Follow-up Attacks . | . . . Damage Inflicted 1172 | . 64 1108 Guns 1172 | . 64 1108 Cannons . | . . . Explosions . | . . . Melee . | . . . Ramming . | . . . Kinetic 370 | . 64 306 Thermal 802 | . . 802 Explosive . | . . . Electromagnetic . | . . . Impact . | . . . Slashing . | . . . Piercing . | . . . Highest Corruption 2 | . 2 . Average Corruption 1 | . 1 . Corruption Purged . | . . . Corruption Blocked . | . . . Overload Shots . | . . . Overflow Damage . | . . . Projectiles . | . . . Explosions . | . . . Melee . | . . . Knockbacks . | . . . Impact . | . . . Kinetic . | . . . Secondary . | . . . Self-Inflicted Damage . | . . . Shots . | . . . Rammed . | . . . Targets Rammed . | . . . Kicked . | . . . Crushed . | . . . Highest Temperature 514 | . 12 514 Average Temperature 196 | . 5 205 Received Heat Transfer 573 | . . 573 Effects 17 | . . 17 Shutdowns 5 | . . 5 Energy Bleed 5 | . . 5 Interference 2 | . . 2 Matter Decay 2 | . . 2 Short Circuit 1 | . . 1 Damage (minor) 2 | . . 2 Siege Activations . | . . . Robots Corrupted . | . . . Combat Hostiles . | . . . Parts Fried . | . . . Impact Corruptions . | . . . Robots Melted . | . . . Combat Hostiles . | . . . Parts Melted 1 | . . 1 Heat Transferred 1887 | . . 1887 Parts Sabotaged . | . . . Parts Stolen . | . . . Parts Stripped . | . . . Power Chain Reactions . | . . . Alert | -11 -10 -9 ------- Run | Yrd Mat Mat Peak Influence 271 | . 70 271 Initial 29 | . . 29 Average 118 | . 36 144 Maximum Alert Level 1 | . . 1 Low Security (%) 84 | 100 100 79 Level 1 15 | . . 20 Level 2 . | . . . Level 3 . | . . . Level 4 . | . . . Level 5 . | . . . High Security . | . . . Max Security . | . . . Squads Dispatched 1 | . . 1 Investigation . | . . . Extermination . | . . . Reinforcement 1 | . . 1 Assault . | . . . Garrison . | . . . Intercept . | . . . Searches Triggered . | . . . Construction Impeded . | . . . Haulers Reinforced . | . . . Active Scanning Responses . | . . . Cargo Convoy Interrupts . | . . . Stealth | -11 -10 -9 --------- Run | Yrd Mat Mat Distress Signals 2 | . . 2 Communications Jammed . | . . . Distress Signals . | . . . Times Spotted 28 | . 3 25 Peak Tracking Total 6 | . 3 6 Tactical Retreats 1 | . . 1 Traps | -11 -10 -9 ------- Run | Yrd Mat Mat Traps Triggered 2 | . 2 . Indirectly . | . . . Trap Hack Attempts . | . . . Triggered . | . . . Disarmed . | . . . Reprogrammed . | . . . Reused . | . . . Traps Extracted . | . . . Installed . | . . . Triggered . | . . . Machines | -11 -10 -9 ---------- Run | Yrd Mat Mat Machines Disabled 1 | . . 1 Max in Single Turn 1 | . . 1 Machines Repaired . | . . . Machines Dismantled . | . . . Machines Sabotaged . | . . . Overloaded Fab Kills . | . . . Hacking | -11 -10 -9 --------- Run | Yrd Mat Mat Machines Accessed 5 | . 2 3 Terminals 2 | . 1 1 Fabricators . | . . . Repair Stations 1 | . . 1 Recycling Units 2 | . 1 1 Scanalyzers . | . . . Garrison Access . | . . . Total Hacks 9 | . 3 6 Successful 7 | . 2 5 Failed 2 | . 1 1 Catastrophic . | . . . Database Lockouts . | . . . Manual . | . . . Terminals 3 | . 2 1 Fabricators . | . . . Repair Stations 2 | . . 2 Recycling Units 4 | . 1 3 Scanalyzers . | . . . Garrison Access . | . . . Terminal Hacks 2 | . 1 1 Emergency Access Points 1 | . 1 . Zone Layout 1 | . . 1 Fabricator Hacks . | . . . Repair Station Hacks 2 | . . 2 Scan Component 1 | . . 1 Repair 1 | . . 1 Recycling Unit Hacks 3 | . 1 2 Report Inventory 2 | . 1 1 Retrieve Components 1 | . . 1 Scanalyzer . | . . . Garrison Access Hacks . | . . . Unauthorized Hacks . | . . . Terminals . | . . . Fabricators . | . . . Repair Stations . | . . . Recycling Units . | . . . Scanalyzers . | . . . Garrison Access . | . . . Data Cores Recovered . | . . . Used . | . . . Hacking Detections 1 | . . 1 Full Trace Events . | . . . Feedback Events . | . . . Feedback Blocked . | . . . Robot Schematics Acquired . | . . . Robots Built . | . . . Authchips . | . . . Time . | . . . Total Robot Build Rating . | . . . Part Schematics Acquired . | . . . Parts Built . | . . . Authchips . | . . . Time . | . . . Total Part Build Rating . | . . . Parts Repaired 1 | . . 1 Time 38 | . . 38 Parts Recycled . | . . . Recycled Matter . | . . . Retrieved Matter . | . . . Retrieved Components 3 | . . 3 Parts Scanalyzed . | . . . Part Schematics Acquired . | . . . Parts Damaged . | . . . Bothacking | -11 -10 -9 ------------ Run | Yrd Mat Mat Used RIF Installer . | . . . Robots Hacked . | . . . Non-combat . | . . . Combat . | . . . Robot Hacks Applied . | . . . Relay Couplers Released . | . . . Fabnet Peak Effective % . | . . . Robots Rewired . | . . . Allies Hacked . | . . . Hacks Repelled . | . . . Allies | -11 -10 -9 -------- Run | Yrd Mat Mat Total Allies . | . . . Largest Group . | . . . Highest-Rated Group . | . . . Highest-Rated Ally . | . . . Total Orders . | . . . Ally Attacks . | . . . Total Damage . | . . . Kills . | . . . Allies Corrupted . | . . . Allies Melted . | . . . Intel | -11 -10 -9 ------- Run | Yrd Mat Mat Robot Analysis Total . | . . . Derelict Logs Recovered . | . . . Drone Launches . | . . . Drone Recoveries . | . . . Exploration | -11 -10 -9 ------------- Run | Yrd Mat Mat Turns Passed 999 | 64 151 784 Spaces Moved 659 | 75 155 429 Core 50 | 27 . 23 Treads . | . . . Legs 261 | . . 261 Wheels 286 | 48 155 83 Hover . | . . . Flight 62 | . . 62 Fastest Speed 50 | 50 80 80 Average Speed 103 | 69 80 118 Slowest Speed 250 | 80 80 250 Overloaded Moves . | . . . Propulsion Burnouts . | . . . Robots Hopped . | . . . Cave-ins Triggered . | . . . Exploration Rate (%) 24 | 4 31 38 Regions Visited 2 Branch Regions . Pre-discovered Areas . | . . . Known Exits Taken . | . . . Unknown Exits Taken 2 | 1 1 . Scrap Searched . | . . . Spaces Dug . | . . . Terrain Destroyed . | . . . Melee . | . . . Projectile . | . . . AOE . | . . . Terrain Rammed . | . . . Walls Destroyed . | . . . Machines Disabled . | . . . Actions | -11 -10 -9 --------- Run | Yrd Mat Mat Total 850 | 87 171 592 Wait 42 | 1 . 41 Move 657 | 74 154 429 Hop . | . . . Pick Up 33 | 6 6 21 Fast Attach 4 | . . 4 Attach 17 | 5 2 10 Detach . | . . . Swap 15 | . 3 12 Drop 13 | 1 1 11 Fire 69 | . 5 64 Melee . | . . . Ram . | . . . Kick . | . . . Crush . | . . . Escape Stasis . | . . . Rewire . | . . . Trap . | . . . Miscellaneous . | . . . Route ------- -11/Scrapyard -10/Materials -9/Materials History --------- Turn | Location | Event 7 | -11/Scrapyard | Discovered new exit (range 16) 65 | -11/Scrapyard | Entered Materials 213 | -10/Materials | Discovered new exit (range 4) 216 | -10/Materials | Entered another Materials area 216 | -9/Materials | Evolved 2 slots: Power x1, Propulsion x1 314 | -9/Materials | Build established: Mutant 408 | -9/Materials | Lost 7 parts (2p2n2u1w) 727 | -9/Materials | Repaired Titanium Leg 862 | -9/Materials | Core integrity fell below 50% 951 | -9/Materials | Core integrity fell below 20% 1000 | -9/Materials | Destroyed by Y-45 Defender with Heavy Assault Rifle Last Messages --------------- Sink. 00916_ Y-45 Defender heat spikes uncontrollably. 00933_ Titanium Leg destroyed. 00935_ M-13 Machinist repairs Imp. Ion Engine. 00936_ Y-45 Defender heat damages core (-4). 00948_ Y-45 Defender heat damages Imp. Ion Engine. 00952_ Y-45 Defender heat damages Broken Lgt. Treads. 00952_ M-13 Machinist fits Backup Propulsion I on Y-45 Defender. 00953_ Y-45 Defender heat damages core (-4). 00975_ Acquired Imp. Ion Engine. 00985_ Destroyed Aluminum Leg. 00992_ G-34 Mercenary overheating. 00994_ G-34 Mercenary destroyed. 00994_ Switching to secondary target: Y-45 Defender. 00999_ Power failure, Imp. Ion Engine shutdown. 01000_ Critical hit (Burn: +37). Map ----- +----------------------------------------------------+ | =+ % ????????????? | | %# ??????????????? | | !# %= ###+#???????????????????? | | # =%! #???????????????????????? | | ## =* #???????????????????????? | | ## """ #???????????????????????? | | #T """ #???????????????????????? | | ## """ #???????????????????????? | | ?# #???????????????????????? | | ?# #???????????????????????? | | ## """ #???????????????????????? | | ## """ #???????????????????????? | | ## """ ###########?????????????? | | ! ## #?????????????? | | ## """ #?????????????? | | ### ## """"" #?????????????? | | ######?# ## """"" #?????????????? | | ###### ## """"" #?????????????? | | + # """ #?????????????? | | ###### + #?????????????? | | #????# # #?????????????? | | #????# # #?########????? | | #???## ##########?#! !!* #????? | | ####### ########### !!* #????? | | "" + ! #????? | | %! T ###### @ #????? | | * ##### ### ##????# #????? | | #???########/####### % #????? | | ##???###### ###Y####????? | | [ ##### # #?# #????? | | [%=%= # """ #?# #????? | | ! * + """""#?# #????? | | ##### # """""#?# ##+###### | | #####??## ## """""#?# ## # | | ### ##### ## """ #?# ## # | | # ## ! #?# ## # | | """" # ## #?# ## # | | ""S"" # ####/######## ## # | | "" "" + # # | | # / # | | # ]!^ T #### # # | | ????????# ]!!! #??# # # | | ????????# ]!! #??# # # | | ???????## ##?# # # | | ??? #?# # # | | ??? #?# # # | | ????######### ##+#####+######## | | ????????????###### ![[ #?? | | ?????????????????# ![[#??? | | ?????????????????# / ![ #??? | +----------------------------------------------------+ Best States ------------- Heat Dissipation 28 Energy Generation 19 Energy Capacity 430 Matter Stores 300 Matter Capacity 300 Sight Range 16 Robot Scan Range 14 Terrain Scan Density 10 ECM Strength 1 Armor Coverage 225 Evasion (%) 55 Targeting Accuracy 16 Item Schematics ----------------- None Robot Schematics ------------------ None Fabricated ------------ Nothing Alien Tech Used ----------------- None Achievements -------------- None Challenges ------------ None Game ------ Seed TransportScatterFacilitator Manual? 0 Play Time 00:15:26 Cumulative 14.1 hours Start 2024.04.22 @ 09:52:46 End 2024.04.22 @ 10:12:49 Sessions 1 Manual Loads 0 Difficulty Rogue Special Mode None Game No. 41 Rogue 41 Adventurer 0 Explorer 0 Win Type - Total 0 Types 0/0/0/0/0/0/0/0/0 Lore% 12 Gallery% 26 Achievement% 21 Wizard Run 0 Options --------- Layout 1 ASCII 0 Keyboard 0 Movement Mouse Keybinds 0 Fullscreen 1 Font 16/SmallcapsGlow Map View 50x40 Zoom Use 0% Tactical HUD 1 Map Filters NONE Filters NONE Steam SD RUN: e29db231-b5d9-457f-b200-a3d3f5781425